[Event "Baku Open 2024"]
[Site "Baku"]
[Date "2024.07.06"]
[Round "8.34"]
[White "Tregubenko, Nikolay"]
[Black "Sherali Pattnaik"]
[Result "1-0"]
[ECO "B15"]
[WhiteElo "2246"]
[BlackElo "1955"]
[Annotator "RC"]
[PlyCount "145"]
[EventDate "2024.06.29"]
[EventType "swiss"]
[EventCountry "AZE"]
[SourceTitle "playchess.com"]
[Source "ChessBase"]
[SourceQuality "1"]
[TimeControl "5400+30"]

1. e4 {[%emt 0:00:08]} c6 {[%emt 0:00:03]} 2. d4 {[%emt 0:00:47]} d5 {[%emt 0:00:02]} 3. Nc3 {[%emt 0:00:22]} dxe4 {[%emt 0:00:03]} 4. Nxe4 {[%emt 0:00:06]} Nf6 {[%emt 0:00:02]} 5. Nxf6+ {[%emt 0:00:16]} exf6 {[%emt 0:00:07]} 6. c3 {[%emt 0:00:04]} Bd6 {[%emt 0:00:03]} 7. Bd3 {[%emt 0:00:06]} O-O {[%emt 0:00:04]} 8. Qc2 {[%emt 0:00:03]} Re8+ {[%emt 0:00:02]} 9. Ne2 {[%emt 0:00:06]} h5 {[%emt 0:00:03]} 10. Be3 {[%emt 0:03:20]} Nd7 {[%emt 0:00:07]} 11. O-O-O {[%emt 0:00:08]} Nf8 {[%emt 0:00:03]} 12. Kb1 {[%emt 0:11:58]} Be6 {[%emt 0:01:41]} 13. Nf4 {[%emt 0:01:59]} Bxf4 {[%emt 0:12:37]} 14. Bxf4 {[%emt 0:00:08]} a5 {[%emt 0:00:06]} 15. Rhe1 {[%emt 0:16:56]} b5 {[%emt 0:01:19]} 16. c4 {[%emt 0:09:16]} Qd7 {[%emt 0:07:45]} 17. d5 {[%emt 0:02:56]} bxc4 {[%emt 0:20:50]} 18. dxe6 {[%emt 0:01:04]} cxd3 {[%emt 0:00:04]} 19. Rxd3 {[%emt 0:00:39]} Qb7 {[%emt 0:00:38]} 20. Rb3 {[%emt 0:03:12]} Qe7 {[%emt 0:03:16]} 21. Qxc6 {[%emt 0:00:54]} Rac8 {[%emt 0:03:53]} 22. Qb7 {[%emt 0:02:25]} Qxb7 {[%emt 0:03:14]} 23. Rxb7 {[%emt 0:00:10]} Nxe6 {[%emt 0:00:48]} 24. Bd2 {[%emt 0:00:14]} a4 {[%emt 0:03:58]} 25. Rb4 {[%emt 0:06:02]} a3 {[%emt 0:06:34]} 26. bxa3 {[%emt 0:07:46]} Ra8 {[%emt 0:04:31]} 27. Kb2 {[%emt 0:07:12]} Ra6 {[%emt 0:06:08]} 28. Rc1 {[%emt 0:03:37]} Rd8 {[%emt 0:01:56]} 29. Be3 {[%emt 0:00:17]} f5 {[%emt 0:01:07]} 30. a4 {[%emt 0:00:34]} f4 {[%emt 0:05:29]} 31. Bb6 {[%emt 0:00:08]} Rda8 {[%emt 0:01:48]} 32. a5 {[%emt 0:00:12]} Nd8 {[%emt 0:00:12]} 33. Rc5 {[%emt 0:01:20]} g6 {[%emt 0:00:51]} 34. Rd5 {[%emt 0:02:18]} Nc6 {[%emt 0:00:31]} 35. Rxf4 {[%emt 0:00:06]} Nxa5 {[%emt 0:00:15]} 36. Bxa5 {[%emt 0:00:06]} Rxa5 {[%emt 0:00:02]} 37. Rxa5 {[%emt 0:00:06]} Rxa5 {[%emt 0:00:06]} 38. a4 {[%emt 0:00:07]} Kf8 {[%emt 0:00:24]} 39. Kb3 {[%emt 0:00:18]} Ke7 {[%emt 0:00:03]} 40. Rd4 {[%emt 0:00:14]} Rf5 {[%emt 0:00:39]} 41. f4 {[%emt 0:01:29]} g5 {[%emt 0:00:44]} 42. fxg5 {[%emt 0:00:17]} Rxg5 {[%emt 0:00:02]} 43. g3 {[%emt 0:00:09]} Rf5 {[%emt 0:00:17]} 44. Rd2 {[%emt 0:03:54]} h4 {[%emt 0:01:10]} 45. gxh4 {[%emt 0:00:20]} Rf4 {[%emt 0:00:01]} 46. a5 {[%emt 0:00:20]} Rxh4 {[%emt 0:00:04]} 47. a6 {[%emt 0:00:08]} f5 {[%emt 0:01:34]} 48. a7 {[%emt 0:00:47]} Rh8 {[%emt 0:00:02]} 49. Ra2 {[%emt 0:00:07]} Ra8 {[%emt 0:00:03]} 50. Kc4 {[%emt 0:00:09]} Kd6 {[%emt 0:01:36]} 51. Kd4 {[%emt 0:00:20]} Kc6 {[%emt 0:00:51]} 52. Ke5 {[%emt 0:00:04]} Kb7 {[%emt 0:00:14]} 53. Kxf5 {[%emt 0:00:05]} Rf8+ {[%emt 0:00:13]} 54. Kg6 {[%emt 0:00:04]} Ka8 {[%emt 0:00:10]} 55. h4 {[%emt 0:00:03]} Rf1 {[%emt 0:00:20]} 56. h5 {[%emt 0:00:48]} Rg1+ {[%emt 0:00:12]} 57. Kh7 {[%emt 0:00:05]} Rh1 {[%emt 0:00:51]} 58. h6 {[%emt 0:00:05]} Rg1 {[%emt 0:00:01]} 59. Ra6 {[%emt 0:00:12]} Rb1 {[%emt 0:00:59]} 60. Kg7 {[%emt 0:00:18]} Rg1+ {[%emt 0:00:16]} 61. Rg6 {[%emt 0:00:05]} Rh1 {[%emt 0:00:03]} 62. h7 {[%emt 0:00:09]} Kxa7 {[%emt 0:00:01]} 63. h8=Q {[%emt 0:00:12]} Rxh8 {[%emt 0:00:03]} 64. Kxh8 {[%emt 0:00:08]} Kb7 {[%emt 0:00:01]} 65. Kg7 {[%emt 0:00:12]} Kc7 {[%emt 0:00:08]} 66. Kf7 {[%emt 0:00:04]} Kd7 {[%emt 0:00:01]} 67. Re6 {[%emt 0:00:07]} Kd8 {[%emt 0:00:04]} 68. Re7 {[%emt 0:00:06]} Kc8 {[%emt 0:00:06]} 69. Ke6 {[%emt 0:00:01]} Kd8 {[%emt 0:00:13]} 70. Kd6 {[%emt 0:00:01]} Kc8 {[%emt 0:00:06]} 71. Kc6 {[%emt 0:00:04]} Kd8 {[%emt 0:00:05]} 72. Re6 {[%emt 0:00:03]} Kc8 {[%emt 0:00:08]} 73. Re8# {[%emt 0:00:02]} 1-0

[Event "Baku Open 2024"]
[Site "Baku"]
[Date "2024.07.06"]
[Round "8.35"]
[White "Hamidov, Allahverdi"]
[Black "Guliev, Sarhan"]
[Result "1-0"]
[ECO "E54"]
[WhiteElo "2307"]
[BlackElo "2224"]
[Annotator "RC"]
[PlyCount "125"]
[EventDate "2024.06.29"]
[EventType "swiss"]
[EventCountry "AZE"]
[SourceTitle "playchess.com"]
[Source "ChessBase"]
[SourceQuality "1"]
[TimeControl "5400+30"]

1. d4 {[%emt 0:00:04]} Nf6 {[%emt 0:03:03]} 2. c4 {[%emt 0:00:10]} e6 {[%emt 0:00:13]} 3. Nc3 {[%emt 0:00:06]} Bb4 {[%emt 0:00:06]} 4. e3 {[%emt 0:00:04]} O-O {[%emt 0:00:07]} 5. Bd3 {[%emt 0:00:05]} d5 {[%emt 0:00:02]} 6. Nf3 {[%emt 0:00:10]} c5 {[%emt 0:00:26]} 7. O-O {[%emt 0:00:05]} dxc4 {[%emt 0:00:06]} 8. Bxc4 {[%emt 0:00:04]} cxd4 {[%emt 0:00:47]} 9. exd4 {[%emt 0:00:04]} b6 {[%emt 0:00:05]} 10. Qe2 {[%emt 0:00:06]} Bb7 {[%emt 0:01:00]} 11. Rd1 {[%emt 0:00:58]} Nc6 {[%emt 0:04:33]} 12. d5 {[%emt 0:01:01]} exd5 {[%emt 0:00:26]} 13. Nxd5 {[%emt 0:00:13]} Nxd5 {[%emt 0:00:32]} 14. Bxd5 {[%emt 0:00:06]} Qe7 {[%emt 0:01:10]} 15. Qb5 {[%emt 0:30:38]} Qc5 {[%emt 0:07:43]} 16. Qd3 {[%emt 0:01:42]} Rad8 {[%emt 0:02:24]} 17. Be3 {[%emt 0:08:44]} Qd6 {[%emt 0:11:45]} 18. Qc2 {[%emt 0:24:21]} Qxd5 {[%emt 0:17:36]} 19. Rxd5 {[%emt 0:00:23]} Rxd5 {[%emt 0:00:02]} 20. Rd1 {[%emt 0:05:24]} Rxd1+ {[%emt 0:01:24]} 21. Qxd1 {[%emt 0:00:07]} h6 {[%emt 0:00:52]} 22. h3 {[%emt 0:02:00]} Rd8 {[%emt 0:00:04]} 23. Qc2 {[%emt 0:00:15]} Be7 {[%emt 0:00:44]} 24. a3 {[%emt 0:01:08]} Bf6 {[%emt 0:00:37]} 25. b4 {[%emt 0:00:23]} Rc8 {[%emt 0:06:42]} 26. Qf5 {[%emt 0:01:16]} Rd8 {[%emt 0:00:26]} 27. Qc2 {[%emt 0:04:28]} Rc8 {[%emt 0:06:37]} 28. Qb3 {[%emt 0:02:44]} Rd8 {[%emt 0:02:50]} 29. a4 {[%emt 0:01:19]} Ne7 {[%emt 0:01:47]} 30. a5 {[%emt 0:02:07]} Nd5 {[%emt 0:03:16]} 31. axb6 {[%emt 0:02:46]} axb6 {[%emt 0:00:10]} 32. Qa4 {[%emt 0:02:25]} Nc3 {[%emt 0:07:32]} 33. Qa7 {[%emt 0:00:44]} Bxf3 {[%emt 0:00:08]} 34. gxf3 {[%emt 0:00:20]} b5 {[%emt 0:00:04]} 35. Qb7 {[%emt 0:02:34]} Rd5 {[%emt 0:01:13]} 36. Kg2 {[%emt 0:00:34]} Rd8 {[%emt 0:00:55]} 37. Bc1 {[%emt 0:01:29]} Ne2 {[%emt 0:01:22]} 38. Be3 {[%emt 0:00:32]} Nc3 {[%emt 0:00:39]} 39. f4 {[%emt 0:00:27]} g6 {[%emt 0:01:39]} 40. Qc6 {[%emt 0:01:55]} Kg7 {[%emt 0:01:58]} 41. Bc5 {[%emt 0:00:29]} Rd3 {[%emt 0:00:27]} 42. Qe8 {[%emt 0:00:40]} Rd8 {[%emt 0:01:14]} 43. Qc6 {[%emt 0:01:39]} Nd5 {[%emt 0:00:52]} 44. Bd6 {[%emt 0:01:03]} Ne7 {[%emt 0:00:20]} 45. Bxe7 {[%emt 0:01:41]} Bxe7 {[%emt 0:00:01]} 46. Qxb5 {[%emt 0:00:11]} Rd4 {[%emt 0:00:02]} 47. Qe8 {[%emt 0:02:09]} Bf6 {[%emt 0:02:57]} 48. b5 {[%emt 0:00:17]} Rxf4 {[%emt 0:00:01]} 49. b6 {[%emt 0:00:40]} Rf5 {[%emt 0:00:26]} 50. f4 {[%emt 0:01:19]} Bd4 {[%emt 0:15:16]} 51. b7 {[%emt 0:00:23]} Ba7 {[%emt 0:00:07]} 52. Qa8 {[%emt 0:00:06]} Ra5 {[%emt 0:01:10]} 53. b8=Q {[%emt 0:00:15]} Bxb8 {[%emt 0:00:01]} 54. Qxa5 {[%emt 0:00:09]} Bxf4 {[%emt 0:00:12]} 55. Kf3 {[%emt 0:00:04]} Bg5 {[%emt 0:00:26]} 56. Ke4 {[%emt 0:00:12]} Bf6 {[%emt 0:00:23]} 57. Kd5 {[%emt 0:00:16]} Be7 {[%emt 0:00:18]} 58. Qc7 {[%emt 0:00:07]} Bg5 {[%emt 0:00:20]} 59. Qe5+ {[%emt 0:00:26]} Bf6 {[%emt 0:01:48]} 60. Qe4 {[%emt 0:00:04]} Kf8 {[%emt 0:00:27]} 61. Kc6 {[%emt 0:00:14]} Bc3 {[%emt 0:00:14]} 62. Qe3 {[%emt 0:00:25]} Bg7 {[%emt 0:00:09]} 63. Kd7 {[%emt 0:00:20]} 1-0

[Event "Baku Open 2024"]
[Site "Baku"]
[Date "2024.07.06"]
[Round "8.36"]
[White "Bayramov, Elvin"]
[Black "Galaktionov, Artem"]
[Result "0-1"]
[ECO "B15"]
[WhiteElo "2155"]
[BlackElo "2358"]
[Annotator "TA"]
[PlyCount "70"]
[EventDate "2024.06.29"]
[EventType "swiss"]
[EventCountry "AZE"]
[SourceTitle "playchess.com"]
[Source "ChessBase"]
[SourceQuality "1"]
[TimeControl "5400+30"]

{[%evp 9,70,0,1,0,0,0,0,-8,1,-27,0,0,-4,6,-8,-57,-56,-60,-61,-41,-49,-108,-107,-106,-106,-104,-40,-54,-45,-80,-61,-177,-181,-283,-164,-164,-162,-256,-195,-363,-380,-365,-369,-346,-231,-257,-255,-249,-216,-346,-256,-416,-433,-576,-587,-596,-554,-591,-566,-1123,-1097,-29998,-29999]} 1. e4 {[%emt 0:01:14]} c6 {[%emt 0:00:04]} 2. d4 {[%emt 0:00:26]} d5 {[%emt 0:00:03]} 3. Nc3 {[%emt 0:00:05]} dxe4 {[%emt 0:00:04]} 4. Nxe4 {[%emt 0:00:03]} Nf6 {[%emt 0:00:03]} 5. Ng3 {[%emt 0:01:22]} h5 {[%emt 0:00:06][%cal Oc6c5,Bh7h5,Bh5h4,Bh4h3][%mdl 32]} 6. Nf3 {[%emt 0:00:04]} h4 {[%emt 0:00:14]} 7. Ne2 {[%emt 0:00:03]} Bg4 {[%emt 0:00:28]} 8. Ne5 {[%emt 0:00:59] The position is equal.} Bf5 {[%emt 0:00:04]} 9. Nf4 {[%emt 0:00:48]} Nbd7 {[%emt 0:05:39] [#] ...Nxe5 would now be deadly.} 10. Bd3 {[%emt 0:01:09]} Bxd3 {[%emt 0:01:21]} 11. Nfxd3 {[%emt 0:00:30]} h3 {[%emt 0:02:31]} 12. O-O {[%emt 0:05:41]} (12. g3 $11 {should be considered.}) 12... hxg2 $15 {[%emt 0:02:06]} 13. Re1 {[%emt 0:00:15]} e6 {[%emt 0:00:50]} 14. Bf4 {[%emt 0:00:48]} Nxe5 {[%emt 0:02:05]} 15. Bxe5 {[%emt 0:00:18]} (15. Nxe5 $15 Rh4 16. Qd2) 15... Bd6 $17 {[%emt 0:04:50]} 16. c4 {[%emt 0:00:32]} Bxe5 {[%emt 0:02:15]} 17. Nxe5 {[%emt 0:00:30][%cal Od1b3]} Rh4 {[%emt 0:04:13]} (17... Nd7 $17 {Threatens to win with ...Nxe5.} 18. Qg4 Nxe5 19. Rxe5 Qf6) 18. Qb3 $15 {[%emt 0:01:49]} Qc7 {[%emt 0:01:10]} 19. d5 {[%emt 0:01:24]} (19. Kxg2 $2 O-O-O (19... Rxd4 $2 20. Rad1 $17) 20. Qa3 Ng4 $17 (20... Rdxd4 21. Rad1 $17) (20... Rhxd4 21. Qxa7 Nh5 22. Qa8+ Qb8 23. Qxb8+ Kxb8 24. Nxf7 $17)) 19... Ne4 {[%emt 0:10:09] Prevents Qg3. Really sharp! Black continues to play with concentration.} ({Much worse is} 19... cxd5 20. cxd5 Nxd5 21. Qb5+ Kf8 22. Rac1 $15) 20. d6 {[%emt 0:07:57]} ({Only move:} 20. Rxe4 $1 $15 Rxe4 21. d6 Qxd6 22. Qxb7 Qxe5 23. Qxa8+ Ke7 24. Rd1) 20... Nxd6 $19 {[%emt 0:02:40] [#] Strongly threatening ...Ne4.} 21. Nf3 {[%emt 0:17:33]} (21. Rad1 $142 Ne4 22. Nf3) 21... Rh8 {[%emt 0:15:19]} (21... Rxc4 $142 {Hoping for ...0-0-0.} 22. Rad1 Rf4) 22. c5 {[%emt 0:01:21]} Nf5 {[%emt 0:00:39]} 23. Qd3 {[%emt 0:00:21] Wards off Nd4} (23. Rad1 $142 Rd8 24. Re4 (24. Rxd8+ $2 Kxd8 25. Kxg2 Kc8 $19)) 23... Nh4 {[%emt 0:11:08]} 24. Ne5 {[%emt 0:20:16]} (24. Nxh4 Rxh4 25. Qg3 Qxg3 26. hxg3) 24... Rd8 {[%emt 0:00:18]} 25. Qg3 {[%emt 0:01:38]} Nf5 {[%emt 0:00:31]} 26. Qc3 {[%emt 0:11:52]} Ke7 {[%emt 0:11:48]} 27. Re4 {[%emt 0:01:52]} Rd5 {[%emt 0:03:51]} 28. Rae1 {[%emt 0:00:38]} Kd8 {[%emt 0:01:13]} 29. Kxg2 {[%emt 0:00:48]} (29. h3 {might work better.}) 29... Kc8 {[%emt 0:00:31]} 30. b4 $2 {[%emt 0:00:36]} (30. Nf3) 30... f6 {[%emt 0:01:23]} 31. Ng4 {[%emt 0:00:42]} Nh4+ {[%emt 0:00:50]} 32. Kf1 {[%emt 0:00:26]} f5 {[%emt 0:00:54][%csl LRe4,LRg4]} 33. Rxe6 {[%emt 0:03:51]} fxg4 {[%emt 0:01:40]} 34. Re7 {[%emt 0:00:13]} Qxh2 {[%emt 0:00:10]} 35. Qxg7 {[%emt 0:00:20]} Qh3+ {[%emt 0:00:05] Weighted Error Value: White=0.78/Black=0.22 (precise) .  Mistake:       	White=8     	Black=2      Inaccurate:     	White=5     	Black=2      OK:         	White=10    	Black=16     Best:        	---       	Black=3} 0-1

[Event "Baku Open 2024"]
[Site "Baku"]
[Date "2024.07.06"]
[Round "8.37"]
[White "Voinikonis, Nikita"]
[Black "Raahul V S"]
[Result "1/2-1/2"]
[ECO "A90"]
[WhiteElo "2129"]
[BlackElo "2314"]
[Annotator "TA"]
[PlyCount "66"]
[EventDate "2024.06.29"]
[EventType "swiss"]
[EventCountry "AZE"]
[SourceTitle "playchess.com"]
[Source "ChessBase"]
[SourceQuality "1"]
[TimeControl "5400+30"]

{[%evp 14,66,43,31,68,58,86,80,89,57,59,31,42,25,34,31,35,26,36,0,26,9,4,12,22,14,18,6,29,31,25,6,39,10,62,60,58,50,52,42,40,0,0,0,14,0,0,0,0,0,0,0,0,0,0]} 1. d4 {[%emt 0:00:07]} f5 {[%emt 0:00:25]} 2. g3 {[%emt 0:00:12]} Nf6 {[%emt 0:00:10]} 3. Bg2 {[%emt 0:00:07]} e6 {[%emt 0:00:18]} 4. Nh3 {[%emt 0:00:31]} d5 {[%emt 0:00:35]} 5. O-O {[%emt 0:00:21]} Bd6 {[%emt 0:00:35]} 6. c4 {[%emt 0:03:10]} c6 {[%emt 0:00:38]} 7. Qc2 {[%emt 0:01:38]} O-O {[%emt 0:01:38]} 8. Bf4 {[%emt 0:00:42]} Qe7 {[%emt 0:00:46]} 9. Nd2 {[%emt 0:00:24]} Bd7 {[%emt 0:02:05][%cal Bc8d7,Bd7e8,Be8h5][%mdl 32]} 10. Bxd6 {[%emt 0:09:28]} Qxd6 {[%emt 0:00:05] White is better.} 11. c5 {[%emt 0:00:08]} Qe7 {[%emt 0:00:15]} 12. f4 {[%emt 0:00:11]} Be8 {[%emt 0:00:17]} 13. b4 {[%emt 0:03:27]} Bh5 {[%emt 0:03:12]} 14. e3 {[%emt 0:01:11]} Nbd7 {[%emt 0:01:29]} 15. Nf2 {[%emt 0:07:13][%cal Bh3f2,Bf2h1,Bh1g3][%mdl 32]} Ne4 {[%emt 0:01:38]} 16. Ndxe4 {[%emt 0:00:52]} fxe4 {[%emt 0:01:28]} 17. g4 {[%emt 0:00:34][%cal Bg3g4,Bg4g5][%mdl 32]} Bf7 {[%emt 0:01:01]} 18. g5 {[%emt 0:06:26]} Bh5 {[%emt 0:00:35]} 19. Nh1 {[%emt 0:01:02]} h6 {[%emt 0:01:38]} 20. Ng3 {[%emt 0:01:09]} Bg4 {[%emt 0:00:11]} 21. h3 {[%emt 0:02:24][%cal Bh2h3,Bh3h4,Bh4g5][%mdl 32]} Bf5 {[%emt 0:00:09]} 22. h4 {[%emt 0:00:10]} hxg5 {[%emt 0:00:50]} 23. hxg5 {[%emt 0:04:33]} (23. Nxf5 {simplifies} exf5 24. hxg5 b6 25. Rfb1) 23... Kf7 {[%emt 0:00:36]} (23... Bg4 $11) 24. Kf2 {[%emt 0:02:47]} Rh8 {[%emt 0:02:44]} 25. Rh1 {[%emt 0:01:07]} Bg4 {[%emt 0:01:20]} 26. Rxh8 {[%emt 0:02:10]} Rxh8 {[%emt 0:00:12]} 27. Rh1 {[%emt 0:00:05]} Rxh1 {[%emt 0:01:43] The position is equal.} 28. Nxh1 {[%emt 0:00:23]} Qd8 {[%emt 0:00:15]} 29. Qb1 {[%emt 0:05:30]} b6 {[%emt 0:01:34]} 30. Ng3 {[%emt 0:07:06]} Qb8 {[%emt 0:04:51] [#] ...bxc5 would now be deadly.} 31. Qb3 {[%emt 0:00:29]} Ke7 {[%emt 0:02:34]} 32. Qa4 {[%emt 0:11:10]} bxc5 {[%emt 0:19:01]} 33. bxc5 {[%emt 0:07:54]} Qb2+ {[%emt 0:20:10] Weighted Error Value: White=0.10 (very precise) /Black=0.11 (very precise) .  Mistake:       	---       	Black=1      Inaccurate:     	White=5     	Black=3      OK:         	White=5     	Black=8      Best:        	White=2     	---} 1/2-1/2

[Event "Baku Open 2024"]
[Site "Baku"]
[Date "2024.07.06"]
[Round "8.38"]
[White "Dolgun, Can"]
[Black "Abdinova, Narmin"]
[Result "1-0"]
[ECO "E01"]
[WhiteElo "2264"]
[BlackElo "2121"]
[Annotator "TA"]
[PlyCount "123"]
[EventDate "2024.06.29"]
[EventType "swiss"]
[EventCountry "AZE"]
[SourceTitle "playchess.com"]
[Source "ChessBase"]
[SourceQuality "1"]
[TimeControl "5400+30"]

{[%evp 20,123,16,0,0,-32,-16,-24,-13,-20,9,0,0,0,0,0,0,0,0,0,12,0,11,11,37,30,36,34,45,11,49,56,108,137,122,133,124,118,124,106,104,68,75,15,118,118,141,131,128,133,128,111,200,187,286,276,353,363,492,492,480,474,484,484,452,458,667,622,1143,968,1037,999,1162,1154,1019,1019,1010,781,1675,2014,2421,1629,1456,1403,1665,1408,29980,29981,29981,29982,29981,29982,29984,29985,29985,29985,29987,29988,29989,29990,29991,29992,29993,29991,29991,29992]} 1. d4 {[%emt 0:00:02]} Nf6 {[%emt 0:02:07]} 2. Nf3 {[%emt 0:00:06]} e6 {[%emt 0:00:49]} 3. g3 {[%emt 0:00:26]} c5 {[%emt 0:00:42]} 4. c4 {[%emt 0:00:54]} cxd4 {[%emt 0:00:46]} 5. Nxd4 {[%emt 0:00:17]} d5 {[%emt 0:00:40]} 6. Bg2 {[%emt 0:00:42]} e5 {[%emt 0:00:34]} 7. Nf3 {[%emt 0:02:25]} d4 {[%emt 0:00:12]} 8. O-O {[%emt 0:01:04]} Nc6 {[%emt 0:00:38]} 9. e3 {[%emt 0:00:59]} Be7 {[%emt 0:17:20]} 10. exd4 {[%emt 0:01:45]} exd4 {[%emt 0:00:26]} 11. Bf4 {[%emt 0:02:05]} O-O {[%emt 0:01:22]} 12. Na3 {[%emt 0:05:57]} Bxa3 {[%emt 0:05:32]} 13. bxa3 {[%emt 0:00:02]} Bf5 {[%emt 0:02:14] Black has an edge.} 14. Qb3 {[%emt 0:07:47]} Qb6 {[%emt 0:09:42]} 15. Ne5 {[%emt 0:07:02][%cal Oc4c5]} Rac8 {[%emt 0:03:13]} 16. Rac1 {[%emt 0:09:05]} Rfe8 {[%emt 0:09:04]} 17. Nxc6 {[%emt 0:04:12]} bxc6 {[%emt 0:00:46]} 18. c5 {[%emt 0:01:35]} Qxb3 {[%emt 0:08:38]} 19. axb3 {[%emt 0:00:02]} Ne4 {[%emt 0:00:16][%cal Bf6e4,Be4c3,Bc3b5][%mdl 32]} 20. Bf3 {[%emt 0:19:19]} Nc3 {[%emt 0:01:13]} 21. Rfe1 {[%emt 0:01:23] Inhibits Ne2+.} Be6 {[%emt 0:14:00]} 22. Be5 {[%emt 0:14:57] This pair of bishops is nice.} Bxb3 {[%emt 0:01:02]} 23. Bxd4 {[%emt 0:00:11][%cal Be5d4,Bd4e3,Be3f4][%mdl 32]} Nb5 {[%emt 0:03:01]} 24. Rxe8+ {[%emt 0:03:49]} Rxe8 {[%emt 0:00:07]} 25. Be3 {[%emt 0:00:09]} (25. Bxc6 $2 {is the wrong capture.} Nxd4 26. Bxe8 Ne2+ 27. Kg2 Nxc1 $19) 25... Bd5 {[%emt 0:04:27]} (25... Re6 $14) 26. Bxd5 $16 {[%emt 0:00:06]} cxd5 {[%emt 0:00:02][%mdl 4096] Endgame. KRB-KRN} 27. a4 {[%emt 0:00:12]} Nc7 {[%emt 0:01:07]} 28. c6 {[%emt 0:00:03][%cal Oc1b1] [#] Hoping for Rb1!} a6 {[%emt 0:01:12]} 29. Bf4 {[%emt 0:01:18]} Rc8 {[%emt 0:01:44]} 30. Rb1 {[%emt 0:01:02] Threatens to win with Bxc7.} Kf8 $1 {[%emt 0:00:34]} 31. Rb7 {[%emt 0:04:08]} (31. Rb6 $16) 31... Ne8 {[%emt 0:01:25]} (31... Ne6 $11 {keeps the balance.}) 32. Rb6 {[%emt 0:03:23] White is much more active. Black is on the road to losing.} a5 {[%emt 0:02:05]} 33. Bd2 {[%emt 0:00:27]} Ke7 {[%emt 0:00:59]} 34. Bxa5 {[%emt 0:00:30]} Ke6 {[%emt 0:00:29]} 35. Bc3 {[%emt 0:04:05]} g6 {[%emt 0:02:22]} (35... f6 $16 {keeps fighting.} 36. Bd2 (36. a5 Nc7 $16) 36... Nd6) 36. a5 $18 {[%emt 0:00:56][%cal Ba4a5,Ba5a6,Ba6a7][%mdl 32]} d4 {[%emt 0:01:25]} (36... f6 $142 37. Kg2 d4 38. Bxd4 Kd5) 37. Bxd4 {[%emt 0:01:19]} Kd5 {[%emt 0:00:08]} 38. Be3 {[%emt 0:02:23]} Rxc6 {[%emt 0:02:29]} 39. Rxc6 {[%emt 0:00:26]} Kxc6 {[%emt 0:00:02] KB-KN} 40. a6 {[%emt 0:00:00]} Nc7 {[%emt 0:00:22]} 41. a7 {[%emt 0:00:04]} Kb7 {[%emt 0:00:27]} 42. Kg2 {[%emt 0:00:06]} Kc6 {[%emt 0:03:11]} (42... Nd5 $142 43. Kf3 f5) 43. Kf3 {[%emt 0:00:53]} Kd5 {[%emt 0:00:17]} 44. Bb6 {[%emt 0:01:46]} Na8 {[%emt 0:00:04]} 45. Ba5 {[%emt 0:00:24]} f6 {[%emt 0:01:25][%cal Bf7f6,Bf6f5][%mdl 32]} 46. Bd8 {[%emt 0:00:29]} Ke5 {[%emt 0:00:41]} 47. Ke3 {[%emt 0:00:13]} f5 {[%emt 0:01:39]} 48. h3 {[%emt 0:00:46][%cal Bh2h3,Bh3h4][%mdl 32]} h6 {[%emt 0:00:17]} 49. h4 {[%emt 0:00:06]} Kd5 {[%emt 0:00:54]} 50. Kd3 {[%emt 0:00:38]} Kc5 {[%emt 0:00:26]} 51. Kc3 {[%emt 0:00:24]} Kd5 {[%emt 0:00:31]} 52. Kb4 {[%emt 0:00:24] [#] Kb5 would kill now.} Kd4 {[%emt 0:00:51]} 53. Kb5 {[%emt 0:00:51] White mates.} Kd5 {[%emt 0:00:01]} 54. Ka6 {[%emt 0:00:48]} Kc6 {[%emt 0:00:01]} 55. Ba5 {[%emt 0:00:28]} g5 {[%emt 0:00:38]} 56. hxg5 {[%emt 0:00:04]} hxg5 {[%emt 0:00:01]} 57. f3 {[%emt 0:00:08]} f4 {[%emt 0:00:34]} 58. g4 {[%emt 0:00:01]} Kd6 {[%emt 0:00:59]} 59. Kb7 {[%emt 0:00:05]} Kd7 {[%emt 0:00:02]} 60. Kxa8 {[%emt 0:00:07]} Kc8 {[%emt 0:00:03]} 61. Bd8 {[%emt 0:00:06]} Kxd8 {[%emt 0:00:09]} 62. Kb7 {[%emt 0:00:02] Weighted Error Value: White=0.08 (flawless) /Black=0.40.  Mistake:       	White=1     	Black=5      Inaccurate:     	White=2     	Black=5      OK:         	White=13    	Black=9      Best:        	White=5     	---        Strong:       	---       	Black=1} 1-0